bitfinex-derivatives/quotes_ETHF0:USTF0_20251117
["timestamp","ask_amount","ask_price","bid_price","bid_amount"]
[1763385231493,0.00473171,3165.8,3165.6,0.51212]
[1763385231798,1.0967114,3166.8,3166.6,0.51197]
[1763385231992,4.3045114,3167.2,3166.7,3.71974]
[1763385232197,3.21132325,3167.2,3166.8,0.51193]
[1763385232590,3.21132325,3167.2,3166.7,3.2078]
[1763385233696,4.61162325,3167.2,3166.6,0.00473941]
[1763385233899,3.2078,3166.8,3166.6,0.00473941]
[1763385236006,1.0967114,3167.0,3166.6,0.00473941]
[1763385236206,1.0967114,3166.9,3166.6,0.00473941]
[1763385236403,1.0967114,3166.9,3165.6,0.8856]
[1763385236404,3.2078,3166.7,3165.6,0.8856]
[1763385236704,3.2078,3164.8,3162.6,1.4569]
[1763385236904,1.0967114,3163.4,3162.2,0.09064158]
[1763385237096,1.0967114,3162.9,3162.2,0.09064158]
[1763385237402,1.0967114,3163.0,3162.2,0.09064158]
[1763385237600,3.2078,3162.7,3162.6,1.4569]
[1763385237796,0.00836971,3162.9,3162.2,3.27831298]
[1763385238101,0.00836971,3162.9,3162.6,1.4569]
[1763385238502,0.00836971,3162.9,3162.6,7.96951]
[1763385238801,0.00836971,3162.9,3162.6,1.96951]
[1763385238997,0.00836971,3162.9,3162.7,0.51259]
[1763385239200,0.00836971,3162.9,3162.7,6.51259]
[1763385239393,3.2078,3163.5,3163.2,0.51251]
[1763385239592,3.2078,3163.5,3163.3,0.51249]
[1763385239806,3.2078,3163.5,3162.6,1.4569]
[1763385240510,3.2078,3162.9,3162.7,0.00473941]
[1763385240905,3.21253941,3163.4,3163.2,0.51251]
[1763385241207,0.00473941,3163.4,3162.7,3.21253941]
[1763385241401,0.00473941,3163.4,3163.2,1.96941]
[1763385241803,0.00473941,3163.4,3163.3,3.2078]
[1763385242309,3.941e-05,3163.4,3163.3,6.3686]
[1763385242804,3.2078,3164.4,3163.9,0.5124]
[1763385243002,3.2078,3164.4,3164.0,0.51238]
[1763385243192,0.85492603,3164.3,3163.9,0.5124]
[1763385243397,0.85492603,3164.2,3164.0,0.51238]
[1763385243600,0.85492603,3164.1,3163.9,0.5124]
[1763385243796,0.00373531,3164.1,3164.0,1.4569]
[1763385243997,0.859668,3164.1,3164.0,1.4569]
[1763385244202,0.859668,3164.1,3164.0,7.4569]
[1763385244401,0.00373531,3164.1,3164.0,1.4569]
[1763385244606,0.86102579,3164.1,3164.0,1.4569]
[1763385247508,0.86102579,3164.1,3163.9,0.5124]
[1763385247707,0.85729048,3164.0,3163.9,0.5124]
[1763385248505,4.06509048,3164.0,3163.3,3.2078]
[1763385248701,4.31000624,3163.6,3162.9,3.2078]
[1763385248902,1.10220624,3163.2,3162.9,3.2078]
[1763385249111,0.85729048,3163.1,3162.7,0.00473941]
[1763385249305,4.86110936,3162.8,3162.7,0.00473941]
[1763385249511,5.71839984,3162.8,3162.7,0.00473941]
[1763385249807,4.06509048,3162.8,3162.7,0.00473941]
[1763385250513,5.71775343,3162.8,3162.7,0.00473941]
[1763385250918,6.23033343,3162.8,3162.7,0.00473941]
[1763385251211,6.23073342,3162.8,3162.7,0.00473941]
[1763385251506,6.25851328,3162.8,3161.7,3.2078]
[1763385251705,1.10188051,3162.3,3161.7,3.2078]
[1763385251914,0.85354215,3162.2,3161.7,3.2078]
[1763385252112,0.85354215,3162.1,3162.0,0.51271]
[1763385252614,0.85354215,3162.1,3162.0,0.51562984]
[1763385253205,0.85354215,3162.1,3162.0,0.00291984]
[1763385253602,0.85354215,3162.1,3161.7,0.00473941]
[1763385253809,1.95490236,3162.0,3161.7,0.51748941]
[1763385254011,0.85354215,3161.9,3161.7,0.51748941]
[1763385254209,0.85354215,3161.8,3161.7,0.51748941]
[1763385254406,0.85354215,3161.8,3161.7,0.00473941]
[1763385254602,0.85673587,3161.8,3161.7,0.00724067]
[1763385255508,0.85673587,3161.8,3161.7,0.52000067]
[1763385256014,0.00473941,3162.4,3161.7,9.72780067]
[1763385256211,0.00473941,3162.4,3162.3,0.51266]
[1763385256510,0.85538634,3162.4,3161.7,3.21504067]
[1763385256708,0.85064693,3162.3,3161.7,0.00724067]
[1763385256914,0.85064693,3162.2,3162.1,0.5127]
[1763385257114,0.85376567,3162.2,3162.1,0.5127]
[1763385257312,0.00311874,3162.2,3162.1,0.5127]
[1763385257510,0.00311874,3162.2,3161.7,0.00724067]
[1763385257715,3.2078,3161.8,3161.7,0.00724067]
[1763385257919,4.05844693,3161.8,3161.7,0.00724067]
[1763385259814,3.2078,3161.8,3161.7,0.52000067]
[1763385260012,0.00311874,3162.2,3162.1,0.5127]
[1763385261418,0.00311874,3162.2,3161.7,3.21504067]
[1763385261614,0.00311874,3162.2,3162.1,3.7205]
[1763385262316,3.2078,3163.1,3163.0,0.51255]
[1763385262516,13.4790986,3164.5,3162.6,4.6109]
[1763385262517,3.2078,3163.6,3162.6,4.6109]
[1763385262723,0.81304448,3163.5,3163.4,0.51249]
[1763385263220,3.2078,3163.6,3163.5,0.51247]
[1763385263409,4.02474345,3163.6,3161.9,1.4031]
[1763385263723,3.2078,3162.0,3160.4,3.2078]
[1763385263916,3.2078,3162.0,3160.0,1.4031]
[1763385263917,3.2078,3161.4,3160.6,3.2078]
[1763385264226,0.81434727,3161.3,3160.9,0.51289]
[1763385264412,0.81434727,3161.2,3160.4,3.2078]
[1763385264612,0.81434727,3161.1,3161.0,2.00345372]
[1763385265019,0.00399566,3161.2,3161.0,2.00345372]
[1763385265216,0.81434727,3161.1,3161.0,2.00345372]
[1763385266326,1.10187509,3161.8,3161.6,0.51276]
[1763385266621,1.10187509,3162.0,3161.6,0.51278]
[1763385266817,4.30967509,3162.3,3161.5,3.2078]
[1763385267027,4.30967509,3162.3,3161.7,0.51276]
[1763385267213,4.31763952,3162.3,3161.7,0.51276]
[1763385267414,3.21576443,3162.3,3162.0,0.51271]
[1763385267726,3.21576443,3162.3,3161.8,0.51274]
[1763385268023,3.2078,3161.9,3161.7,0.51275]
[1763385268218,3.21576443,3162.3,3162.1,0.51269]
[1763385268422,3.21576443,3162.3,3162.0,0.5127]
[1763385268723,3.21576443,3162.3,3162.1,0.51269]
[1763385268918,3.21576443,3162.3,3162.0,0.51271]
[1763385269122,3.21576443,3162.3,3161.6,3.2078]
[1763385269428,3.21576443,3162.3,3161.2,3.2078]
[1763385269627,3.21576443,3162.3,3162.1,0.51269]
[1763385269815,3.21576443,3162.3,3161.2,3.2078]
[1763385270123,3.21576443,3162.3,3162.1,0.51269]
[1763385270920,3.21576443,3162.3,3162.1,0.5127]
[1763385271916,3.21576443,3162.3,3162.2,0.51268]
[1763385272316,3.21576443,3162.3,3162.1,0.51269]
[1763385272613,3.21576443,3162.3,3162.2,0.51268]
[1763385272811,3.21576443,3162.3,3162.0,0.5127]
[1763385273124,3.21576443,3162.3,3161.6,4.0964]
[1763385273125,3.21576443,3162.3,3162.2,0.51268]
[1763385276425,3.21576443,3162.3,3161.2,3.2078]
[1763385276618,3.21576443,3162.3,3161.2,4.0964]
[1763385277120,3.21576443,3162.3,3161.2,15.4874]
[1763385277624,3.21576443,3162.3,3162.2,0.51268]
[1763385278222,3.2078,3163.0,3162.9,0.51257]
[1763385278423,4.01074591,3163.0,3162.9,0.51257]
[1763385279118,4.01325034,3163.0,3162.9,0.51257]
[1763385279728,0.80545034,3163.0,3162.9,0.51257]
[1763385280126,0.00250443,3163.0,3162.9,0.51257]
[1763385281925,0.00250443,3163.0,3162.6,3.21253941]
[1763385282128,0.00250443,3163.0,3162.9,0.51257]
[1763385283622,0.00250443,3163.0,3162.9,2.85217]
[1763385285622,0.00473941,3163.3,3163.2,2.85212]
[1763385285928,0.00473941,3163.3,3163.2,6.05992]
[1763385286126,3.2078,3164.4,3164.3,0.51234]
[1763385286923,3.21128064,3164.4,3164.3,0.51639989]
[1763385287121,0.00348064,3164.4,3164.3,0.51639989]
[1763385287428,2.3033,3165.2,3165.1,0.51221]
[1763385288026,1.4468,3165.4,3165.3,0.51218]
[1763385288224,3.75371383,3165.4,3165.3,0.51218]
[1763385288420,3.75371383,3165.4,3165.0,3.21253941]
[1763385288823,3.75371383,3165.4,3165.1,0.51221]
[1763385289025,0.00473941,3165.7,3165.6,0.51213]
[1763385289231,3.2078,3165.8,3165.7,0.51211]
[1763385291636,0.00306613,3166.2,3166.1,0.51205]
[1763385292429,0.00306613,3166.2,3166.0,0.51206]
[1763385293130,2.3033,3166.1,3166.0,0.51206]
[1763385293334,11.9274,3166.1,3165.1,0.51221]
[1763385293535,5.6968,3165.4,3165.3,0.51218]
[1763385293730,2.489,3165.4,3165.3,0.51218]
[1763385294035,3.2078,3165.8,3165.5,0.51215]
[1763385294232,3.2078,3165.8,3165.2,0.51219]
[1763385294533,3.2078,3165.8,3165.0,0.00473941]
[1763385294534,2.489,3165.4,3165.3,0.51216]
[1763385295631,2.489,3165.6,3165.5,0.51214]
[1763385295937,2.489,3165.5,3165.4,0.51215]
[1763385296828,3.2078,3165.8,3165.5,0.51214]
[1763385297634,2.489,3165.7,3165.5,0.51214]
[1763385297933,2.489,3165.7,3165.6,0.51213]
[1763385298333,2.489,3165.7,3165.0,1.37763941]
[1763385298534,2.489,3165.7,3165.4,0.51216]
[1763385298933,2.489,3165.5,3165.4,0.51216]
[1763385299128,2.489,3165.4,3165.0,0.00473941]
[1763385299838,3.2078,3165.8,3165.6,0.51212]
[1763385300036,2.489,3165.7,3165.6,0.51212]
[1763385300336,2.489,3165.7,3165.1,3.2078]
[1763385300729,2.489,3165.7,3165.3,0.51216]
[1763385301035,2.489,3164.4,3164.0,3.2078]
[1763385301224,7.1313,3164.4,3163.7,0.51242]
[1763385301530,4.6423,3163.8,3163.6,0.51245]
[1763385301736,3.2078,3163.8,3162.9,3.2078]
[1763385302032,3.2078,3163.8,3163.7,0.51244]
[1763385302237,3.21002501,3163.8,3163.7,0.00382091]
[1763385302738,3.21002501,3163.8,3163.3,0.5125]
[1763385302938,3.21002501,3163.8,3163.6,0.51245]
[1763385303139,0.00222501,3163.8,3163.6,0.51245]
[1763385303843,1.4279,3163.3,3163.0,0.00473941]
[1763385304230,3.2078,3163.5,3163.0,0.51727941]
[1763385304431,3.2078,3163.5,3163.1,0.51253]
[1763385304738,3.2078,3163.5,3163.1,0.00237778]
[1763385304937,3.2078,3163.5,3163.1,0.51490778]
[1763385305332,3.2078,3163.5,3163.1,0.50530778]
[1763385305634,3.2078,3163.5,3163.3,0.51249]
[1763385306032,3.2078,3163.5,3163.0,0.00473941]
[1763385306232,3.2078,3163.5,3163.4,0.51249]
[1763385306443,3.2078,3163.5,3163.4,0.51548157]
[1763385306740,0.00222501,3163.8,3163.6,0.51244]
[1763385306945,0.00222501,3163.8,3163.4,0.00299157]
[1763385307137,0.00222501,3163.8,3163.6,0.51245]
[1763385307638,0.00222501,3163.8,3163.4,0.00299157]
[1763385307834,2.489,3163.7,3163.6,0.51245]
[1763385310841,2.489,3163.6,3163.5,0.51247]
[1763385311342,0.00222501,3163.8,3163.5,0.51247]
[1763385311537,2.489,3163.6,3163.5,0.51247]
[1763385311734,0.00222501,3163.8,3163.7,0.51244]
[1763385311936,0.00222501,3163.8,3163.7,6.16064]
[1763385313038,3.2078,3164.3,3164.2,0.51236]
[1763385313242,3.2078,3164.3,3164.2,2.95276]
[1763385313929,0.00289916,3164.3,3164.2,2.95276]
[1763385317638,3.2078,3165.1,3165.0,0.51223]
[1763385317841,3.2078,3165.1,3165.0,2.77063]
[1763385318052,5.5601,3165.6,3165.5,0.51214]
[1763385318235,3.2078,3165.6,3165.5,0.51214]
[1763385318744,3.21101645,3165.6,3165.2,0.00473941]
[1763385318944,2.3523,3165.3,3165.2,0.00473941]
[1763385319143,2.3523,3165.3,3165.2,0.51693941]
[1763385319545,2.3523,3165.3,3165.2,0.00473941]
[1763385319749,3.76611645,3165.6,3165.2,0.51691941]
[1763385320054,3.21101645,3165.6,3165.5,0.51215]
[1763385320350,2.3523,3164.6,3164.5,0.51231]
[1763385320538,1.3869,3165.0,3164.0,1.3729]
[1763385320539,2.3523,3164.4,3164.3,0.51234]
[1763385321342,2.3523,3164.4,3164.0,1.37763941]
[1763385321548,2.3523,3164.4,3164.0,0.00473941]
[1763385321754,2.4963,3164.3,3164.2,0.51236]
[1763385322646,2.4963,3164.6,3164.5,0.51231]
[1763385323250,2.4963,3164.6,3164.0,0.00473941]
[1763385323442,2.4963,3164.5,3164.4,0.51232]
[1763385323641,2.50103941,3164.7,3164.0,0.00473941]
[1763385323838,2.50103941,3164.7,3164.5,0.51231]
[1763385324041,2.50103941,3164.7,3164.6,0.51229]
[1763385324451,0.00473941,3164.7,3164.6,0.51229]
[1763385324842,0.00473941,3164.7,3164.6,2.83279]
[1763385325842,0.00473941,3164.7,3164.6,0.51229]
[1763385326048,2.4963,3164.1,3164.0,0.00473941]
[1763385326948,2.4963,3164.1,3164.0,0.51712941]
[1763385327147,2.4963,3164.3,3164.2,0.51236]
[1763385327348,2.4963,3164.1,3164.0,0.00473941]
[1763385327744,5.7041,3164.4,3164.3,0.51234]
[1763385327957,2.4963,3164.3,3164.2,0.51236]
[1763385328848,0.00473941,3164.7,3164.6,2.83279]
[1763385329048,0.00473941,3164.7,3164.6,6.04059]
[1763385329756,3.2078,3165.3,3165.2,0.5122]
[1763385330056,2.49951645,3165.6,3165.5,0.51215]
[1763385330854,2.49951645,3165.6,3165.0,3.2078]
[1763385331050,2.49951645,3165.6,3165.5,0.51215]
[1763385331643,0.00321645,3165.6,3165.5,0.51215]
[1763385332049,0.00321645,3165.6,3165.0,4.6006]
[1763385332251,0.00321645,3165.6,3165.5,0.51215]
[1763385332445,2.49951645,3165.6,3165.5,0.51215]
[1763385333455,2.49951645,3165.6,3165.0,4.6006]
[1763385333653,3.03851645,3165.6,3165.0,3.2078]
[1763385333855,2.49951645,3165.6,3165.5,0.51215]
[1763385334059,0.00321645,3165.6,3165.5,0.51215]
[1763385334355,2.49951645,3165.6,3165.5,0.51215]
[1763385334958,3.03851645,3165.6,3165.5,0.51215]
[1763385335159,2.49951645,3165.6,3165.5,0.51215]
[1763385335361,3.90551645,3165.6,3165.5,0.51215]
[1763385335652,2.49951645,3165.6,3165.5,0.51215]
[1763385336561,0.00321645,3165.6,3165.5,0.51215]
[1763385337457,1.406,3166.8,3165.5,0.51215]
[1763385337458,2.4963,3166.1,3166.0,0.51207]
[1763385337661,3.7753,3166.2,3166.1,0.51205]
[1763385337861,3.7753,3166.2,3165.7,0.00473941]
[1763385337862,2.4963,3166.0,3165.9,0.51208]
[1763385338566,2.49940675,3166.0,3165.9,0.00386232]
[1763385339263,2.49940675,3166.0,3165.9,0.51594232]
[1763385339565,2.45220675,3166.0,3165.9,0.51594232]
[1763385340064,0.00310675,3166.0,3165.9,0.51594232]
[1763385340563,0.00310675,3166.0,3165.9,2.83644232]
[1763385341268,0.00310675,3166.0,3165.9,6.04424232]
[1763385342658,3.2078,3167.1,3166.7,0.51195]
[1763385342859,3.2078,3167.1,3165.9,3.21166232]
[1763385343059,2.4963,3166.7,3166.6,0.51196]
[1763385343259,5.7041,3167.1,3166.4,3.2078]
[1763385343456,2.4963,3166.8,3166.4,3.2078]
[1763385343668,2.4963,3166.8,3166.7,0.51195]
[1763385343962,2.49925847,3166.8,3166.7,0.51195]
[1763385344154,0.00295847,3166.8,3166.7,2.83245]
[1763385345471,0.00295847,3166.8,3166.7,2.3205]
[1763385345770,0.00295847,3166.8,3166.7,2.83245]
[1763385346268,3.2078,3167.5,3167.4,0.51184]
[1763385346463,5.7041,3167.5,3167.4,0.51184]
[1763385346663,2.4963,3167.5,3167.4,0.51184]
[1763385346868,2.4963,3167.8,3167.7,0.51178]
[1763385347267,2.49854873,3167.8,3167.7,0.51178]
[1763385347471,2.49854873,3167.8,3167.7,0.51179]
[1763385347773,2.4963,3167.7,3167.4,0.00473941]
[1763385347974,2.4963,3167.7,3167.6,0.51181]
[1763385348377,2.4963,3167.7,3167.6,3.7196]
[1763385349978,0.00224873,3167.8,3167.7,2.83229]
[1763385350175,2.49854873,3167.8,3167.7,0.51179]
[1763385350567,2.49854873,3167.8,3167.4,0.00473941]
[1763385350568,2.4963,3167.5,3167.4,0.00473941]
[1763385350975,2.4963,3167.5,3167.4,0.51657941]
[1763385351174,3.9023,3167.5,3167.4,0.00473941]
[1763385351372,9.9023,3167.5,3166.5,1.3928]
[1763385351575,2.408,3167.2,3166.7,3.2078]
[1763385351769,2.408,3167.1,3167.0,0.5119]
[1763385352174,2.408,3166.9,3166.8,0.51192]
[1763385353481,2.408,3166.8,3166.7,3.2078]
[1763385353681,2.408,3166.8,3166.7,3.71975]
[1763385354484,2.7543,3166.8,3166.7,3.71975]
[1763385354775,2.408,3166.6,3166.5,0.00473941]
[1763385354981,2.408,3166.6,3166.5,0.51671941]
[1763385356277,2.408,3166.6,3166.5,0.00473941]
[1763385356883,2.408,3166.6,3166.5,0.51671941]
[1763385360376,2.408,3166.6,3166.5,0.00473941]
[1763385360576,2.408,3166.6,3166.5,0.51671941]
[1763385361875,2.408,3167.1,3167.0,0.51189]
[1763385362677,0.00473941,3167.2,3167.1,2.86609]
[1763385362880,0.00473941,3167.2,3167.1,0.51189]
[1763385363886,0.00473941,3167.2,3167.1,2.86609]
[1763385364183,0.00473941,3167.2,3166.7,3.2078]
[1763385364184,2.41273941,3167.2,3166.7,3.2078]
[1763385364384,0.00473941,3167.2,3166.7,3.2078]
[1763385364681,0.00473941,3167.2,3167.1,0.51189]
[1763385364883,0.00473941,3167.2,3167.1,2.86609]
[1763385365080,0.77492718,3167.6,3167.5,4.23482]
[1763385365279,3.8982,3168.5,3168.4,0.51168]
[1763385365480,2.408,3168.2,3168.1,0.51171]
[1763385365882,3.8982,3168.5,3168.4,0.51168]
[1763385366184,2.408,3168.5,3168.4,0.51168]
[1763385366383,2.41164785,3168.5,3168.4,0.51490101]
[1763385366584,0.00364785,3168.5,3168.4,0.51490101]
[1763385368579,2.41164785,3168.5,3168.4,0.00322101]
[1763385368872,0.00364785,3168.5,3168.4,0.51490101]
[1763385369073,0.00364785,3168.5,3168.4,2.86910101]
[1763385369581,2.41164785,3168.5,3168.4,0.51490101]
[1763385369781,2.408,3168.1,3168.0,0.51174]
[1763385369981,2.408,3167.5,3167.4,0.51184]
[1763385370182,1.4902,3168.0,3167.8,0.51176]
[1763385370486,4.70164785,3168.5,3167.9,0.51176]
[1763385370780,2.408,3168.1,3168.0,0.51174]
[1763385371086,2.408,3168.0,3167.9,0.52042038]
[1763385372782,2.408,3168.0,3167.9,0.00866038]
[1763385372985,3.8982,3168.0,3167.9,0.00866038]
[1763385373488,3.8982,3168.0,3167.9,0.52042038]
[1763385373986,3.8982,3168.0,3167.9,0.00866038]
[1763385374186,3.8982,3168.0,3167.9,0.52042038]
[1763385374490,3.8982,3168.0,3167.9,0.00866038]
[1763385374684,3.8982,3168.0,3167.9,0.52042038]
[1763385374881,3.8982,3168.0,3167.9,0.00866038]
[1763385375186,3.8982,3168.0,3167.9,0.52042038]
[1763385376185,2.408,3168.0,3167.9,0.52042038]
[1763385377083,2.408,3168.0,3167.9,0.00866038]
[1763385377279,3.889,3168.0,3167.9,0.00866038]
[1763385377481,2.408,3168.0,3167.9,0.52042038]
[1763385377874,2.408,3168.0,3167.9,0.00866038]
[1763385378077,3.889,3168.0,3167.9,0.52042038]
[1763385378478,2.408,3168.0,3167.9,0.52042038]
[1763385379492,2.4748,3168.2,3167.9,0.00866038]
[1763385379685,2.4748,3168.1,3168.0,0.51173]
[1763385380889,3.9558,3168.0,3167.9,0.00866038]
[1763385381486,3.9558,3168.0,3167.9,0.52042038]
[1763385381999,3.9558,3168.0,3167.9,0.00866038]
[1763385382192,2.3617,3168.1,3168.0,0.51172]
[1763385382491,2.3617,3168.0,3167.9,0.00866038]
[1763385382886,2.6531,3168.0,3167.9,0.00866038]
[1763385385183,3.42796287,3168.0,3167.9,0.00866038]
[1763385385388,2.3617,3167.4,3167.3,3.71966]
[1763385386397,2.3617,3167.4,3167.3,3.72268676]
[1763385386690,2.3617,3167.4,3167.3,3.21082676]
[1763385386893,2.3617,3167.4,3167.3,3.72268676]
[1763385387196,2.3617,3167.4,3167.3,0.00302676]
[1763385387497,3.1369259,3167.4,3167.3,0.00302676]
[1763385387887,3.1369259,3167.4,3167.3,2.676e-05]
[1763385388187,3.2078,3167.7,3167.3,2.45582676]
[1763385388383,3.2078,3167.7,3167.6,2.96761]
[1763385388582,3.2078,3168.1,3168.0,0.51173]
[1763385388790,5.5695,3168.1,3168.0,0.51173]
[1763385389591,3.2078,3168.1,3168.0,4.32873]
[1763385390102,0.00838726,3168.5,3168.4,2.96748]
[1763385390898,3.2078,3169.0,3168.9,2.9674]
[1763385391092,3.2078,3169.5,3169.0,0.51157]
[1763385391286,3.2078,3169.9,3169.4,2.4558]
[1763385391487,3.2078,3169.9,3169.6,0.51148]
[1763385391682,3.2078,3169.9,3169.7,0.51147]
[1763385392086,3.21002596,3169.9,3169.7,0.5138201]
[1763385392283,3.21002596,3169.9,3169.8,2.4558]
[1763385393288,3.21002596,3169.9,3169.7,0.5138201]
[1763385393289,3.21002596,3169.9,3169.7,0.0023501]
[1763385393600,3.7348,3169.8,3169.7,0.0023501]
[1763385393787,2.3617,3169.8,3169.7,0.0023501]
[1763385393987,0.00222596,3169.9,3169.8,2.4558]
[1763385394188,2.3617,3169.8,3169.7,0.5138201]
[1763385394486,2.3617,3169.8,3169.7,0.0023501]
[1763385394686,0.00222596,3169.9,3169.8,0.51145]
[1763385395000,0.00222596,3169.9,3169.7,0.5138101]
[1763385395297,2.3617,3169.8,3169.7,0.0023501]
[1763385396190,2.9927,3169.8,3169.7,0.0023501]
[1763385396592,2.3617,3169.8,3169.7,0.5138201]
[1763385396791,2.3617,3169.8,3169.7,0.0023501]
[1763385397009,2.3617,3169.8,3169.7,0.5138201]
[1763385397497,2.3617,3169.8,3169.7,0.0023501]
[1763385397796,2.9927,3169.8,3169.7,0.0023501]
[1763385399096,2.9927,3169.8,3169.5,0.00473941]
[1763385399097,2.3617,3169.6,3169.5,0.00473941]
[1763385399307,2.3617,3169.1,3169.0,3.2078]
[1763385399495,2.3617,3169.1,3169.0,3.71938]
[1763385399999,4.5738,3169.5,3169.1,0.51156]
[1763385400394,2.3617,3169.2,3169.1,0.51156]
[1763385400797,2.3617,3169.1,3169.0,3.21563567]
[1763385401005,2.3617,3169.1,3169.0,3.72721567]
[1763385402701,2.3617,3169.1,3169.0,3.21563567]
[1763385403701,4.5738,3169.5,3169.0,3.21563567]
[1763385403898,4.5738,3169.5,3169.0,3.72721567]
[1763385404300,2.3617,3169.1,3169.0,3.72721567]
[1763385405197,3.2078,3169.5,3169.4,2.4558]
[1763385405399,3.21002596,3169.9,3169.7,0.51146]
[1763385405598,3.21002596,3169.9,3169.6,0.51148]
[1763385405899,2.3617,3169.7,3169.6,0.51148]
[1763385407902,2.3617,3169.7,3169.0,4.57683567]
[1763385408106,2.3617,3169.7,3169.5,0.51148]
[1763385409003,2.3617,3169.7,3169.4,0.51149]
[1763385409205,2.3617,3169.7,3169.5,0.51148]
[1763385409401,3.21002596,3169.9,3169.7,0.51146]
[1763385409596,3.21002596,3169.9,3169.0,4.57683567]
[1763385409806,3.21002596,3169.9,3169.4,0.51149]
[1763385410404,3.21002596,3169.9,3169.5,0.51148]
[1763385411813,2.3617,3169.8,3169.7,0.51146]
[1763385413814,2.5001,3169.7,3169.6,0.51147]
[1763385414115,3.21002596,3169.9,3169.8,2.85315]
[1763385414116,5.71012596,3169.9,3169.8,2.85315]
[1763385414416,2.5001,3169.8,3169.7,0.51146]
[1763385414601,2.5001,3169.6,3169.5,0.51148]
[1763385418102,2.5001,3169.6,3169.5,2.85318]
[1763385420306,2.5001,3169.1,3169.0,0.00783567]
[1763385420808,2.5001,3168.3,3168.2,3.2078]
[1763385421012,2.5001,3167.8,3167.7,3.2078]
[1763385421712,2.5001,3167.8,3167.0,1.4345]
[1763385421713,2.5001,3167.4,3167.3,3.2078]
[1763385421908,2.50335355,3167.4,3167.3,3.21160014]
[1763385422310,2.50335355,3167.4,3167.3,0.00380014]
[1763385424119,0.00325355,3167.4,3167.3,2.34550014]
[1763385425416,0.00473941,3167.7,3167.3,2.34550014]
[1763385425611,0.00473941,3167.7,3167.6,2.3417]
[1763385426616,0.00703185,3167.7,3167.6,2.3417]
[1763385426816,0.00703185,3167.7,3167.6,2.85351]
[1763385427026,3.2078,3168.7,3168.1,0.51172]
[1763385427213,3.2078,3168.7,3168.5,0.51166]
[1763385427516,3.2078,3168.7,3168.0,3.2078]
[1763385427517,2.5001,3168.1,3168.0,3.2078]
[1763385427912,2.5001,3168.1,3168.0,0.51174]
[1763385428115,2.50277006,3168.1,3168.0,0.51174]
[1763385428508,0.00267006,3168.1,3168.0,4.28794]
[1763385428718,2.50277006,3168.1,3167.6,3.2078]
[1763385428922,2.50277006,3168.1,3168.0,0.51174]
[1763385430117,2.50277006,3168.1,3167.6,3.2078]
[1763385430318,2.50277006,3168.1,3168.0,0.51174]
[1763385431016,2.50277006,3168.1,3167.6,3.2078]
[1763385431217,2.50277006,3168.1,3167.7,3.2078]
[1763385431218,2.5001,3167.8,3167.7,3.2078]
[1763385431422,2.5001,3167.8,3167.3,3.21160014]
[1763385431624,2.5001,3167.4,3167.3,3.21160014]
[1763385432018,1.4421,3167.5,3167.3,3.21160014]
[1763385432019,3.2078,3167.8,3167.3,2.85736014]
[1763385432220,3.2078,3167.8,3167.3,0.00380014]
[1763385432427,3.2078,3167.8,3167.3,0.51565014]
[1763385432622,2.5001,3167.4,3167.3,0.51565014]
[1763385433030,3.2078,3167.8,3167.3,0.00380014]
[1763385433424,2.5001,3167.4,3167.3,0.00380014]
[1763385434127,2.5001,3167.8,3167.7,0.51179]
[1763385434631,0.00267006,3168.1,3167.9,0.51176]
[1763385435933,2.50277006,3168.1,3168.0,0.51174]
[1763385437037,2.2584,3167.7,3167.6,3.2078]
[1763385437232,2.2584,3167.7,3167.6,3.71961]
[1763385437935,2.2584,3168.0,3167.6,3.2078]
[1763385438133,0.00267006,3168.1,3167.9,0.51174]
[1763385438330,2.2584,3168.0,3167.9,0.51174]
[1763385438531,2.2584,3167.7,3167.6,3.71959]
[1763385438934,2.2584,3167.7,3167.6,0.51179]
[1763385439645,2.2584,3167.5,3167.4,0.51184]
[1763385442738,2.2584,3167.5,3167.4,2.65714]
[1763385443246,3.2078,3167.8,3167.3,0.00380014]
[1763385443247,2.2589,3167.7,3167.6,0.5118]
[1763385443638,2.2589,3167.6,3167.5,0.51182]
[1763385444041,2.2589,3167.4,3167.3,0.51566014]
[1763385444345,2.2589,3167.1,3167.0,0.00473941]
[1763385445637,2.2589,3167.1,3167.0,0.00701137]
[1763385445843,3.2078,3167.4,3167.1,0.51189]
[1763385446145,2.2589,3167.2,3167.0,1.31841137]
[1763385446342,2.2589,3167.2,3167.0,0.00701137]
[1763385446745,2.2589,3167.1,3167.0,0.00701137]
[1763385447652,3.2078,3167.4,3167.3,2.2434]
[1763385447854,2.2589,3167.4,3167.0,1.83031137]
[1763385448247,2.2589,3167.1,3167.0,0.51891137]
[1763385449454,2.2589,3167.5,3167.4,0.51184]
[1763385449845,2.2589,3167.5,3167.4,2.75524]
[1763385450151,2.2589,3167.5,3167.4,2.2434]
[1763385451052,2.2589,3167.5,3167.2,3.2078]
[1763385451249,2.2589,3167.1,3167.0,0.00701137]
[1763385453643,2.2589,3167.1,3167.0,0.51891137]
[1763385454257,3.2078,3167.5,3167.4,2.75524]
[1763385454852,5.4667,3167.5,3167.0,1.31841137]
[1763385455050,5.4667,3167.5,3167.1,0.51187]
[1763385455243,5.4667,3167.5,3167.2,0.51187]
[1763385455658,5.4667,3167.5,3167.1,0.51188]
[1763385456159,5.4667,3167.5,3167.2,0.51186]
[1763385456861,3.2078,3167.5,3167.4,2.75524]
[1763385457246,5.4667,3167.5,3167.4,0.51184]
[1763385457547,2.2589,3167.4,3167.0,1.31841137]
[1763385457752,2.2589,3167.4,3167.0,0.51891137]
[1763385457947,2.2589,3167.1,3167.0,0.51891137]
[1763385458249,2.2589,3167.1,3167.0,0.00701137]
[1763385458851,2.2589,3167.1,3167.0,0.51891137]
[1763385459249,3.2078,3167.5,3167.0,1.31841137]
[1763385459762,3.2078,3167.5,3167.4,2.75524]
[1763385460060,2.2589,3167.6,3167.5,0.51182]
[1763385460257,2.2589,3167.6,3167.2,3.2078]
[1763385460559,2.2589,3167.5,3167.4,0.51184]
[1763385460758,2.2589,3167.7,3167.6,0.51181]